[Event "Fagernes Chess GM-Swiss 2025"]
[Site "Fagernes"]
[Date "2025.04.16"]
[Round "4.4"]
[White "Vijayakumar, Rishi"]
[Black "Kvaloy, Aksel Bu"]
[Result "0-1"]
[Annotator "RC"]
[ECO "D61"]
[WhiteElo "2317"]
[BlackElo "2481"]
[PlyCount "110"]
[EventDate "2025.04.12"]
[EventCountry "NOR"]
[SourceTitle "playchess.com"]
[Source "ChessBase"]
[SourceQuality "1"]
[TimeControl "40/6000+30:2400+30"]

1. d4 {[%emt 0:03:16]} Nf6 {[%emt 0:00:02]} 2. c4 {[%emt 0:00:05]} e6 {[%emt 0:00:04]} 3. Nf3 {[%emt 0:00:33]} d5 {[%emt 0:00:05]} 4. Nc3 {[%emt 0:00:07]} Nbd7 {[%emt 0:00:03]} 5. Bg5 {[%emt 0:00:36]} h6 {[%emt 0:00:56]} 6. Bh4 {[%emt 0:01:32]} Be7 {[%emt 0:00:14]} 7. e3 {[%emt 0:00:51]} O-O {[%emt 0:00:00]} 8. Qc2 {[%emt 0:01:32]} c5 {[%emt 0:02:25]} 9. cxd5 {[%emt 0:01:23]} Nxd5 {[%emt 0:00:33]} 10. Bxe7 {[%emt 0:00:18]} Nxe7 {[%emt 0:00:09]} 11. Be2 {[%emt 0:04:58]} cxd4 {[%emt 0:02:26]} 12. Nxd4 {[%emt 0:02:23]} Nf6 {[%emt 0:01:06]} 13. O-O {[%emt 0:09:10]} Bd7 {[%emt 0:05:39]} 14. Rfd1 {[%emt 0:11:44]} Qb6 {[%emt 0:08:41]} 15. Qb3 {[%emt 0:12:48]} Qxb3 {[%emt 0:04:15]} 16. Nxb3 {[%emt 0:02:03]} Rac8 {[%emt 0:02:27]} 17. e4 {[%emt 0:12:39]} e5 {[%emt 0:20:23]} 18. f3 {[%emt 0:10:37]} Be6 {[%emt 0:04:09]} 19. Na5 {[%emt 0:02:11]} Rc7 {[%emt 0:02:19]} 20. Rd2 {[%emt 0:04:18]} a6 {[%emt 0:01:22]} 21. Rad1 {[%emt 0:03:04]} Nc6 {[%emt 0:02:42]} 22. Nxc6 {[%emt 0:01:05]} Rxc6 {[%emt 0:00:10]} 23. Rd6 {[%emt 0:01:25]} Rxd6 {[%emt 0:00:56]} 24. Rxd6 {[%emt 0:00:02]} Rc8 {[%emt 0:00:24]} 25. Kf2 {[%emt 0:01:44]} Kf8 {[%emt 0:00:16]} 26. Ke3 {[%emt 0:04:52]} Ke7 {[%emt 0:01:05]} 27. Rd2 {[%emt 0:01:02]} Nd7 {[%emt 0:04:34]} 28. Nd5+ {[%emt 0:08:22]} Bxd5 {[%emt 0:02:59]} 29. Rxd5 {[%emt 0:00:05]} f6 {[%emt 0:00:21]} 30. g3 {[%emt 0:02:43]} Nb6 {[%emt 0:00:33]} 31. Rd2 {[%emt 0:00:33]} Rc5 {[%emt 0:09:08]} 32. f4 {[%emt 0:01:36]} a5 {[%emt 0:04:18]} 33. b3 {[%emt 0:03:32]} Nc8 {[%emt 0:00:36]} 34. Bd3 {[%emt 0:02:33]} Na7 {[%emt 0:13:38]} 35. Bc4 {[%emt 0:00:43]} b5 {[%emt 0:01:06]} 36. Rd5 {[%emt 0:00:37]} Rxd5 {[%emt 0:02:58]} 37. Bxd5 {[%emt 0:00:02]} Kd6 {[%emt 0:00:09]} 38. f5 {[%emt 0:01:39]} b4 {[%emt 0:07:20]} 39. Bc4 {[%emt 0:00:12]} Kc5 {[%emt 0:00:22]} 40. Kd3 {[%emt 0:00:30]} Nc8 {[%emt 0:00:43]} 41. Ba6 {[%emt 0:01:44]} Nb6 {[%emt 0:05:40]} 42. h4 {[%emt 0:01:39]} a4 {[%emt 0:08:27]} 43. h5 {[%emt 0:01:48]} a3 {[%emt 0:01:07]} 44. Bb7 {[%emt 0:07:54]} Nc4 {[%emt 0:01:35]} 45. Ba6 {[%emt 0:02:45]} Nb2+ {[%emt 0:00:56]} 46. Ke3 {[%emt 0:00:17]} Nd1+ {[%emt 0:00:25]} 47. Kd2 {[%emt 0:00:09]} Nc3 {[%emt 0:00:11]} 48. Kc2 {[%emt 0:00:27]} Kd4 {[%emt 0:00:18]} 49. g4 {[%emt 0:00:13]} Nxa2 {[%emt 0:00:29]} 50. Kb1 {[%emt 0:00:08]} Nc3+ {[%emt 0:00:04]} 51. Ka1 {[%emt 0:00:05]} Nxe4 {[%emt 0:00:06]} 52. Be2 {[%emt 0:00:17]} Kc3 {[%emt 0:00:18]} 53. Ka2 {[%emt 0:00:13]} Ng3 {[%emt 0:00:18]} 54. Bd1 {[%emt 0:00:10]} e4 {[%emt 0:00:08]} 55. g5 {[%emt 0:00:17]} hxg5 {[%emt 0:00:19]} 0-1

[Event "Fagernes Chess GM-Swiss 2025"]
[Site "Fagernes"]
[Date "2025.04.16"]
[Round "4.5"]
[White "Johansson, Linus"]
[Black "Kreken, Eivind Grunt"]
[Result "1/2-1/2"]
[Annotator "RC"]
[ECO "D25"]
[WhiteElo "2392"]
[BlackElo "2326"]
[PlyCount "103"]
[EventDate "2025.04.12"]
[EventCountry "NOR"]
[SourceTitle "playchess.com"]
[Source "ChessBase"]
[SourceQuality "1"]
[TimeControl "40/6000+30:2400+30"]

1. d4 {[%emt 0:00:03]} d5 {[%emt 0:00:52]} 2. c4 {[%emt 0:00:02]} dxc4 {[%emt 0:00:19]} 3. Nf3 {[%emt 0:00:18]} Nf6 {[%emt 0:00:10]} 4. e3 {[%emt 0:00:10]} Bg4 {[%emt 0:00:16]} 5. Bxc4 {[%emt 0:00:26]} e6 {[%emt 0:00:29]} 6. h3 {[%emt 0:00:39]} Bh5 {[%emt 0:00:09]} 7. Nbd2 {[%emt 0:00:29]} Nbd7 {[%emt 0:05:38]} 8. O-O {[%emt 0:04:29]} c5 {[%emt 0:05:49]} 9. Re1 {[%emt 0:00:06]} Be7 {[%emt 0:18:52]} 10. e4 {[%emt 0:01:29]} cxd4 {[%emt 0:02:42]} 11. e5 {[%emt 0:00:24]} Nd5 {[%emt 0:00:58]} 12. Nf1 {[%emt 0:04:24]} O-O {[%emt 0:04:17]} 13. Bxd5 {[%emt 0:12:40]} exd5 {[%emt 0:01:40]} 14. Ng3 {[%emt 0:01:28]} Bg6 {[%emt 0:10:20]} 15. Nxd4 {[%emt 0:00:35]} Nc5 {[%emt 0:01:22]} 16. Ndf5 {[%emt 0:04:10]} Re8 {[%emt 0:10:17]} 17. Be3 {[%emt 0:09:46]} Ne4 {[%emt 0:01:58]} 18. Qg4 {[%emt 0:08:34]} Qc8 {[%emt 0:10:12]} 19. Rac1 {[%emt 0:13:15]} Qe6 {[%emt 0:00:19]} 20. Rc7 {[%emt 0:00:27]} Nxg3 {[%emt 0:09:51]} 21. Nxe7+ {[%emt 0:04:44]} Rxe7 {[%emt 0:00:06]} 22. Rxe7 {[%emt 0:00:06]} Qxe7 {[%emt 0:00:16]} 23. Qxg3 {[%emt 0:00:05]} Qb4 {[%emt 0:00:38]} 24. Rc1 {[%emt 0:02:45]} Qxb2 {[%emt 0:02:38]} 25. Qf4 {[%emt 0:05:39]} Re8 {[%emt 0:05:57]} 26. Bd4 {[%emt 0:02:02]} Qe2 {[%emt 0:02:12]} 27. Rc7 {[%emt 0:03:38]} b5 {[%emt 0:03:27]} 28. Rxa7 {[%emt 0:05:29]} h5 {[%emt 0:01:06]} 29. Kh2 {[%emt 0:02:09]} Qe4 {[%emt 0:01:13]} 30. Qxe4 {[%emt 0:02:01]} Bxe4 {[%emt 0:00:12]} 31. Kg3 {[%emt 0:02:15]} h4+ {[%emt 0:02:23]} 32. Kxh4 {[%emt 0:02:25]} Bxg2 {[%emt 0:00:11]} 33. f4 {[%emt 0:01:57]} Re6 {[%emt 0:06:24]} 34. f5 {[%emt 0:03:21]} Rh6+ {[%emt 0:00:05]} 35. Kg3 {[%emt 0:00:07]} Be4 {[%emt 0:02:59]} 36. Kf4 {[%emt 0:07:51]} Rh5 {[%emt 0:00:52]} 37. f6 {[%emt 0:01:25]} gxf6 {[%emt 0:00:13]} 38. exf6 {[%emt 0:00:06]} Rxh3 {[%emt 0:00:26]} 39. Ke5 {[%emt 0:00:47]} b4 {[%emt 0:01:09]} 40. Rb7 {[%emt 0:04:36]} Ra3 {[%emt 0:00:36]} 41. Rxb4 {[%emt 0:40:08]} Rxa2 {[%emt 0:40:36]} 42. Rb8+ {[%emt 0:00:38]} Kh7 {[%emt 0:00:11]} 43. Rf8 {[%emt 0:00:18]} Bg6 {[%emt 0:01:04]} 44. Kxd5 {[%emt 0:00:16]} Ra5+ {[%emt 0:00:33]} 45. Bc5 {[%emt 0:00:30]} Ra6 {[%emt 0:00:00]} 46. Be7 {[%emt 0:00:00]} Ra5+ {[%emt 0:00:00]} 47. Kd4 {[%emt 0:00:00]} Ra4+ {[%emt 0:00:00]} 48. Ke3 {[%emt 0:00:00]} Re4+ {[%emt 0:00:00]} 49. Kf3 {[%emt 0:00:00]} Rc4 {[%emt 0:00:00]} 50. Rb8 {[%emt 0:00:00]} Ra4 {[%emt 0:00:00]} 51. Kg3 {[%emt 0:00:00]} Rc4 {[%emt 0:00:00]} 52. Rb4 {[%emt 0:00:00]} 1/2-1/2

[Event "Fagernes Chess GM-Swiss 2025"]
[Site "Fagernes"]
[Date "2025.04.16"]
[Round "4.6"]
[White "Ghosh, Diptayan"]
[Black "Zhou, Yang-Fan"]
[Result "1/2-1/2"]
[Annotator "TA"]
[ECO "D87"]
[WhiteElo "2573"]
[BlackElo "2418"]
[PlyCount "109"]
[EventDate "2025.04.12"]
[EventCountry "NOR"]
[SourceTitle "playchess.com"]
[Source "ChessBase"]
[SourceQuality "1"]
[TimeControl "40/6000+30:2400+30"]

{[%evp 15,109,12,27,0,0,0,0,0,0,0,0,0,0,0,0,-11,0,0,18,0,0,0,0,0,0,0,0,0,0,0,0,0,0,0,0,-93,-89,-141,-104,-164,-146,-130,-69,-90,-9,-31,0,0,0,-35,0,-93,-89,-116,-106,-123,-112,-139,-131,-136,-140,-164,-97,-109,-97,-101,0,0,0,0,97,109,208,216,214,208,215,207,210,209,194,192,259,203,179,199,195,190,197,172,170,0,0,0,143,0]} 1. d4 {[%emt 0:01:40]} Nf6 {[%emt 0:00:09]} 2. c4 {[%emt 0:00:09]} g6 {[%emt 0:00:04]} 3. Nc3 {[%emt 0:00:05]} d5 {[%emt 0:00:04]} 4. cxd5 {[%emt 0:00:21]} Nxd5 {[%emt 0:00:06]} 5. e4 {[%emt 0:00:04]} Nxc3 {[%emt 0:00:05]} 6. bxc3 {[%emt 0:00:03]} Bg7 {[%emt 0:00:05]} 7. Bc4 {[%emt 0:00:04][%cal Bf1c4,Bc4b3,Bb3c2,Bc2e4][%mdl 32]} c5 {[%emt 0:00:19]} 8. Ne2 {[%emt 0:00:05]} O-O {[%emt 0:00:25]} 9. d5 {[%emt 0:00:15] D87: Exchange Grünfeld: Classical Line: Variations without ...cxd4.} Nd7 {[%emt 0:00:22]} 10. O-O {[%emt 0:00:07]} Nb6 {[%emt 0:01:11]} 11. Bb3 {[%emt 0:01:08] The position is equal.} c4 {[%emt 0:00:29]} 12. Bc2 {[%emt 0:00:07]} f5 $1 {[%emt 0:00:05]} 13. Re1 $146 {[%emt 0:00:51]} (13. f3 fxe4 14. Bxe4 Qc7 15. Ba3 Rd8 16. Qd2 Nxd5 17. Bxd5+ e6 18. Bxe6+ Bxe6 19. Nd4 {½-½ Zherebtsova,A (2246)-Adithya,A (2111) Budapest FS08 IM 2024 (7)}) 13... fxe4 {[%emt 0:02:01]} 14. Bxe4 {[%emt 0:01:33]} Bf5 {[%emt 0:03:18]} 15. Bf3 {[%emt 0:00:40]} Qd7 {[%emt 0:31:07]} 16. Ba3 {[%emt 0:25:41]} Rad8 {[%emt 0:00:37][%cal Rb6d5]} 17. Nd4 {[%emt 0:10:56]} Rfe8 {[%emt 0:20:41]} (17... Nxd5 $6 18. Bxd5+ Qxd5 19. Bxe7 (19. Rxe7 Rf7 $15) 19... Bxd4 20. cxd4 $16) 18. Nxf5 {[%emt 0:23:35]} gxf5 {[%emt 0:00:24]} 19. Qd2 {[%emt 0:11:49]} Nxd5 {[%emt 0:07:14]} 20. Rad1 {[%emt 0:01:37]} e6 {[%emt 0:01:59]} 21. Bh5 {[%emt 0:00:45]} Qc6 {[%emt 0:06:46]} 22. Bxe8 {[%emt 0:03:41]} Rxe8 {[%emt 0:00:05]} 23. Bb2 {[%emt 0:04:03]} b5 {[%emt 0:00:47]} 24. Ba1 {[%emt 0:05:11]} a6 {[%emt 0:11:04]} 25. a4 {[%emt 0:01:46] White is weak on the light squares} bxa4 $17 {[%emt 0:01:33][%csl Oa4] Black has a strong passed pawn} 26. Rb1 {[%emt 0:00:24]} (26. Qg5 $142) 26... a3 {[%emt 0:02:08] Black plays on the queen side and is better} 27. g3 {[%emt 0:02:28]} (27. Rbd1 $17) 27... Nf6 $1 $19 {[%emt 0:04:59]} 28. Qe3 {[%emt 0:00:50]} Nd7 {[%emt 0:05:33] Repels Rb6} (28... Ne4 $1 $17) 29. Qf4 $1 $15 {[%emt 0:00:58]} Nb6 {[%emt 0:06:15]} (29... Bf6 $17) 30. Qc1 {[%emt 0:03:25]} Bf8 {[%emt 0:00:52]} 31. Qg5+ $1 {[%emt 0:00:53]} Bg7 {[%emt 0:00:31]} 32. Qc1 {[%emt 0:04:43]} Qc5 {[%emt 0:00:19]} (32... h5 $5) 33. Re2 {[%emt 0:00:05]} (33. Qg5 $11) 33... h6 $17 {[%emt 0:01:20]} 34. Ra2 {[%emt 0:02:14]} Bf8 {[%emt 0:00:01]} 35. Qd1 {[%emt 0:00:08]} Qc6 $1 {[%emt 0:02:06]} 36. Qh5 {[%emt 0:00:55]} Kg7 {[%emt 0:00:27] Against Qg6+} 37. Re2 {[%emt 0:03:43][%cal Ob1b6]} Bc5 {[%emt 0:00:28]} 38. Rd1 {[%emt 0:00:52]} Nd5 {[%emt 0:01:01]} (38... Re7 $1 $19 {Strongly threatening ...Nd7.} 39. h3 Nd7) 39. Qf3 {[%emt 0:00:14]} (39. Rxd5 $2 Qxd5 40. Qxe8 Qd1+ 41. Kg2 Qxe2 42. Qd7+ Kf6 43. Qd8+ Kf7 44. Qc7+ Be7 $19) 39... Re7 {[%emt 0:01:19]} 40. Rde1 {[%emt 0:00:44]} Qb6 {[%emt 0:01:30]} (40... Qe8 $17) 41. g4 $1 $36 {[%emt 0:06:22][%mdl 2048] White has the initiative.} fxg4 {[%emt 0:17:06]} 42. Qxg4+ {[%emt 0:01:03]} Kh8 {[%emt 0:00:37] Counterplay White} (42... Kh7 $11 43. Kh1 (43. Qxc4 Bxf2+ 44. Rxf2 Rg7+ 45. Kf1 Ne3+ 46. Rxe3 Qxe3 $11) 43... Nf6) 43. Qxc4 $16 {[%emt 0:10:29]} Bxf2+ {[%emt 0:06:18]} 44. Rxf2 $18 {[%emt 0:01:52] and Qc8+ should not be overlooked} Rg7+ {[%emt 0:00:06]} 45. Kf1 {[%emt 0:01:04][%cal Bg1f1,Bf1e2,Be2e3][%mdl 32]} Ne3+ {[%emt 0:00:01] [#]} 46. Rxe3 $1 {[%emt 0:00:04]} Qxe3 {[%emt 0:00:05] [#]} 47. Qd4 $1 {[%emt 0:06:56]} (47. Qxa6 Qh3+ (47... Qc1+ 48. Ke2 $11) 48. Ke1 (48. Ke2 Qg4+ 49. Ke3 Qg5+ 50. Kd3 Qd5+ 51. Ke3 Qg5+ 52. Ke2 Qh5+ 53. Ke3 Qg5+ $11) 48... Qe3+ 49. Kf1 Kh7 $11) 47... Qc1+ {[%emt 0:02:00]} 48. Ke2 {[%emt 0:00:04] Threatening mate with Rf8+.} Qc2+ {[%emt 0:00:24]} ({Not} 48... Qxa1 49. Rf8+ Kh7 50. Qd3+ Rg6 51. Rf7+ (51. Qxa6 $2 {too greedy.} Rg2+ 52. Kf3 Qh1 $19) 51... Kh8 52. Qd8+ (52. Qxg6 Qb2+ 53. Kd1 Qb3+ 54. Ke2 Qb2+ 55. Kd1 Qb3+ 56. Kd2 Qd5+ 57. Qd3 Qg2+ 58. Ke3 Qh3+ 59. Ke4 Qg4+ 60. Ke5 Qg8 $18) 52... Rg8 53. Qf6+) (48... Kg8 {might work better.}) 49. Ke3 {[%emt 0:03:00]} Qc1+ {[%emt 0:00:14] [#]} 50. Qd2 $1 {[%emt 0:01:04]} Qg1 {[%emt 0:05:37][%cal Oe6e5]} (50... Qxa1 51. Rf8+ Rg8 52. Qd4+ Kh7 53. Qd3+ Kh8 54. Rf1 $16 (54. Rxg8+ Kxg8 55. Qg6+ Kf8 $11)) 51. Qd8+ {[%emt 0:05:06]} Kh7 {[%emt 0:01:16][%cal Oa3a2]} 52. Qd3+ {[%emt 0:00:05]} Kg8 {[%emt 0:00:10]} 53. Qd8+ $2 {[%emt 0:02:01]} (53. Qf1 $18) 53... Kh7 $11 {[%emt 0:00:02]} 54. Qd3+ {[%emt 0:01:10]} ({White should play} 54. Ke2 $11) 54... Kg8 $16 {[%emt 0:00:05]} 55. Qd8+ {[%emt 0:01:35] Weighted Error Value: White=0.20 (precise) /Black=0.20 (precise)   Missed win:     	White=1     	---        Mistake:       	White=6     	Black=7      Inaccurate:     	White=1     	Black=2      OK:         	White=11    	Black=20     Best:        	White=6     	Black=6      Strong:       	White=5     	Black=2      Brilliant:      	White=1     	---} (55. Qf1 $16) 1/2-1/2

[Event "Fagernes Chess GM-Swiss 2025"]
[Site "Fagernes"]
[Date "2025.04.16"]
[Round "4.7"]
[White "Kulaots, Kaido"]
[Black "Vestby-Ellingsen, Mads"]
[Result "1/2-1/2"]
[Annotator "RC"]
[ECO "D35"]
[WhiteElo "2510"]
[BlackElo "2398"]
[PlyCount "93"]
[EventDate "2025.04.12"]
[EventCountry "NOR"]
[SourceTitle "playchess.com"]
[Source "ChessBase"]
[SourceQuality "1"]
[TimeControl "40/6000+30:2400+30"]

1. c4 {[%emt 0:00:14]} e6 {[%emt 0:02:58]} 2. Nc3 {[%emt 0:01:32]} d5 {[%emt 0:00:24]} 3. d4 {[%emt 0:00:13]} Nf6 {[%emt 0:00:40]} 4. cxd5 {[%emt 0:00:50]} exd5 {[%emt 0:00:14]} 5. Bg5 {[%emt 0:00:05]} c6 {[%emt 0:03:14]} 6. e3 {[%emt 0:02:13]} Be6 {[%emt 0:02:33]} 7. Bd3 {[%emt 0:04:57]} Nbd7 {[%emt 0:03:10]} 8. h3 {[%emt 0:04:37]} Bd6 {[%emt 0:06:17]} 9. Nge2 {[%emt 0:01:25]} h6 {[%emt 0:03:36]} 10. Bf4 {[%emt 0:01:06]} Bxf4 {[%emt 0:08:51]} 11. Nxf4 {[%emt 0:00:25]} Qe7 {[%emt 0:02:33]} 12. O-O {[%emt 0:18:51]} O-O {[%emt 0:01:29]} 13. Qc2 {[%emt 0:15:57]} Rfd8 {[%emt 0:07:28]} 14. Rab1 {[%emt 0:10:40]} c5 {[%emt 0:17:28]} 15. Nxe6 {[%emt 0:12:32]} Qxe6 {[%emt 0:04:07]} 16. Bf5 {[%emt 0:00:23]} Qe7 {[%emt 0:01:48]} 17. Rbd1 {[%emt 0:06:58]} c4 {[%emt 0:03:16]} 18. b3 {[%emt 0:09:45]} g6 {[%emt 0:06:19]} 19. Bxd7 {[%emt 0:00:45]} cxb3 {[%emt 0:00:22]} 20. Qxb3 {[%emt 0:00:33]} Qxd7 {[%emt 0:00:14]} 21. Rb1 {[%emt 0:05:00]} Rac8 {[%emt 0:02:21]} 22. Rfc1 {[%emt 0:03:56]} b6 {[%emt 0:04:08]} 23. Rc2 {[%emt 0:02:20]} Rc7 {[%emt 0:09:30]} 24. Rbc1 {[%emt 0:00:07]} Rdc8 {[%emt 0:00:23]} 25. Ne2 {[%emt 0:00:58]} Rxc2 {[%emt 0:10:59]} 26. Rxc2 {[%emt 0:00:04]} Rxc2 {[%emt 0:00:09]} 27. Qxc2 {[%emt 0:00:04]} a5 {[%emt 0:01:31]} 28. f3 {[%emt 0:01:25]} Kg7 {[%emt 0:03:40]} 29. Kf2 {[%emt 0:00:25]} h5 {[%emt 0:03:10]} 30. Nf4 {[%emt 0:02:58]} h4 {[%emt 0:01:24]} 31. Ne2 {[%emt 0:00:46]} Qd6 {[%emt 0:01:13]} 32. Qb3 {[%emt 0:01:59]} Qc7 {[%emt 0:00:30]} 33. Nc3 {[%emt 0:01:35]} Qg3+ {[%emt 0:00:27]} 34. Kf1 {[%emt 0:00:09]} Qh2 {[%emt 0:00:30]} 35. Nxd5 {[%emt 0:01:08]} Nh5 {[%emt 0:00:28]} 36. Qxb6 {[%emt 0:00:51]} Ng3+ {[%emt 0:00:29]} 37. Kf2 {[%emt 0:00:08]} Nh1+ {[%emt 0:00:32]} 38. Ke1 {[%emt 0:00:55]} Qxg2 {[%emt 0:00:32]} 39. Qf6+ {[%emt 0:00:19]} Kg8 {[%emt 0:00:23]} 40. Qd8+ {[%emt 0:00:18]} Kg7 {[%emt 0:00:14]} 41. Qf6+ {[%emt 0:21:39]} Kg8 {[%emt 0:00:34]} 42. a4 {[%emt 0:06:06]} Qc2 {[%emt 0:08:08]} 43. Qd8+ {[%emt 0:10:53]} Kg7 {[%emt 0:00:23]} 44. Qf6+ {[%emt 0:00:06]} Kg8 {[%emt 0:00:12]} 45. Qd8+ {[%emt 0:01:56]} Kg7 {[%emt 0:00:15]} 46. Qf6+ {[%emt 0:00:10]} Kg8 {[%emt 0:00:17]} 47. e4 {[%emt 0:00:16]} 1/2-1/2

[Event "Fagernes Chess GM-Swiss 2025"]
[Site "Fagernes"]
[Date "2025.04.16"]
[Round "4.8"]
[White "Rozentalis, Eduardas"]
[Black "Aradhya, Garg"]
[Result "1/2-1/2"]
[Annotator "RC"]
[ECO "C68"]
[WhiteElo "2481"]
[BlackElo "2387"]
[PlyCount "124"]
[EventDate "2025.04.12"]
[EventCountry "NOR"]
[SourceTitle "playchess.com"]
[Source "ChessBase"]
[SourceQuality "1"]
[TimeControl "40/6000+30:2400+30"]

1. e4 {[%emt 0:00:04]} e5 {[%emt 0:00:02]} 2. Nf3 {[%emt 0:00:35]} Nc6 {[%emt 0:00:02]} 3. Bb5 {[%emt 0:00:28]} a6 {[%emt 0:00:01]} 4. Bxc6 {[%emt 0:00:10]} dxc6 {[%emt 0:00:02]} 5. O-O {[%emt 0:00:15]} Bd6 {[%emt 0:06:06]} 6. d4 {[%emt 0:01:32]} exd4 {[%emt 0:00:03]} 7. Qxd4 {[%emt 0:00:08]} f6 {[%emt 0:00:02]} 8. Be3 {[%emt 0:01:56]} Ne7 {[%emt 0:00:17]} 9. Nbd2 {[%emt 0:01:49]} Be6 {[%emt 0:00:02]} 10. Rad1 {[%emt 0:00:27]} Ng6 {[%emt 0:19:35]} 11. Nc4 {[%emt 0:00:34]} Bxc4 {[%emt 0:00:07]} 12. Qxc4 {[%emt 0:00:03]} Qe7 {[%emt 0:00:04]} 13. Rfe1 {[%emt 0:03:54]} O-O-O {[%emt 0:01:20]} 14. Bc1 {[%emt 0:02:50]} Rhe8 {[%emt 0:02:37]} 15. g3 {[%emt 0:02:06]} h5 {[%emt 0:04:19]} 16. Nd4 {[%emt 0:02:54]} Ne5 {[%emt 0:00:39]} 17. Qe2 {[%emt 0:00:27]} Qf7 {[%emt 0:04:45]} 18. Nf5 {[%emt 0:10:43]} Bc5 {[%emt 0:00:20]} 19. Be3 {[%emt 0:00:42]} Bf8 {[%emt 0:03:30]} 20. a3 {[%emt 0:11:18]} Rxd1 {[%emt 0:07:18]} 21. Rxd1 {[%emt 0:01:32]} Qc4 {[%emt 0:00:05]} 22. Qxc4 {[%emt 0:07:40]} Nxc4 {[%emt 0:03:14]} 23. Bc1 {[%emt 0:00:08]} Rxe4 {[%emt 0:00:24]} 24. Kf1 {[%emt 0:00:05]} g6 {[%emt 0:04:23]} 25. Nh4 {[%emt 0:04:27]} g5 {[%emt 0:00:08]} 26. Ng2 {[%emt 0:00:09]} Ne5 {[%emt 0:06:18]} 27. h4 {[%emt 0:09:24]} Nf3 {[%emt 0:00:08]} 28. hxg5 {[%emt 0:03:00]} fxg5 {[%emt 0:00:04]} 29. Rd3 {[%emt 0:00:14]} g4 {[%emt 0:00:07]} 30. Re3 {[%emt 0:00:09]} Rxe3 {[%emt 0:10:50]} 31. Bxe3 {[%emt 0:00:39]} Kd7 {[%emt 0:00:08]} 32. Nf4 {[%emt 0:04:45]} Bg7 {[%emt 0:00:07]} 33. b3 {[%emt 0:01:30]} h4 {[%emt 0:00:10]} 34. gxh4 {[%emt 0:00:53]} Nxh4 {[%emt 0:00:02]} 35. Nd3 {[%emt 0:00:36]} b6 {[%emt 0:00:15]} 36. a4 {[%emt 0:00:13]} Nf5 {[%emt 0:00:47]} 37. Ke2 {[%emt 0:01:17]} c5 {[%emt 0:01:55]} 38. Bf4 {[%emt 0:02:52]} Nd4+ {[%emt 0:01:30]} 39. Kd2 {[%emt 0:14:45]} Kc6 {[%emt 0:00:19]} 40. Bg3 {[%emt 0:00:37]} Nf3+ {[%emt 0:12:41]} 41. Ke3 {[%emt 0:44:04]} Bc3 {[%emt 0:43:54]} 42. Ke2 {[%emt 0:03:25]} b5 {[%emt 0:07:41]} 43. axb5+ {[%emt 0:01:15]} axb5 {[%emt 0:00:02]} 44. Nf4 {[%emt 0:04:56]} Ba5 {[%emt 0:00:00]} 45. Ne6 {[%emt 0:00:00]} Nd4+ {[%emt 0:00:00]} 46. Nxd4+ {[%emt 0:00:00]} cxd4 {[%emt 0:00:00]} 47. f3 {[%emt 0:00:00]} gxf3+ {[%emt 0:00:00]} 48. Kxf3 {[%emt 0:00:00]} Kd5 {[%emt 0:00:00]} 49. Ke2 {[%emt 0:00:00]} Ke4 {[%emt 0:00:00]} 50. Bh4 {[%emt 0:00:00]} Bb4 {[%emt 0:00:00]} 51. Bd8 {[%emt 0:00:00]} Bd6 {[%emt 0:00:00]} 52. Bf6 {[%emt 0:00:00]} Be5 {[%emt 0:00:00]} 53. Be7 {[%emt 0:00:00]} Bg3 {[%emt 0:00:00]} 54. Bd8 {[%emt 0:00:00]} Bd6 {[%emt 0:00:00]} 55. Bf6 {[%emt 0:00:00]} c6 {[%emt 0:00:00]} 56. Bd8 {[%emt 0:00:00]} Bf4 {[%emt 0:00:00]} 57. Be7 {[%emt 0:00:00]} d3+ {[%emt 0:00:00]} 58. cxd3+ {[%emt 0:00:00]} Kd4 {[%emt 0:00:00]} 59. Bf6+ {[%emt 0:00:00]} Be5 {[%emt 0:00:00]} 60. Bxe5+ {[%emt 0:00:00]} Kxe5 {[%emt 0:00:00]} 61. Ke3 {[%emt 0:00:00]} c5 {[%emt 0:00:00]} 62. b4 {[%emt 0:00:00]} cxb4 {[%emt 0:00:00]} 1/2-1/2

[Event "Fagernes Chess GM-Swiss 2025"]
[Site "Fagernes"]
[Date "2025.04.16"]
[Round "4.9"]
[White "Miezis, Normunds"]
[Black "Willow, Jonah B"]
[Result "0-1"]
[Annotator "RC"]
[ECO "A21"]
[WhiteElo "2409"]
[BlackElo "2471"]
[PlyCount "77"]
[EventDate "2025.04.12"]
[EventCountry "NOR"]
[SourceTitle "playchess.com"]
[Source "ChessBase"]
[SourceQuality "1"]
[TimeControl "40/6000+30:2400+30"]

1. c4 {[%emt 0:01:15]} e5 {[%emt 0:00:31]} 2. Nc3 {[%emt 0:01:45]} d6 {[%emt 0:00:05]} 3. Nf3 {[%emt 0:05:22]} f5 {[%emt 0:00:09]} 4. d4 {[%emt 0:00:34]} e4 {[%emt 0:00:08]} 5. Ng1 {[%emt 0:01:24]} c6 {[%emt 0:02:33]} 6. Nh3 {[%emt 0:12:08]} Nf6 {[%emt 0:13:36]} 7. f3 {[%emt 0:16:15]} d5 {[%emt 0:05:39]} 8. Bg5 {[%emt 0:02:08]} dxc4 {[%emt 0:06:21]} 9. e3 {[%emt 0:00:54]} b5 {[%emt 0:02:34]} 10. fxe4 {[%emt 0:15:38]} fxe4 {[%emt 0:03:20]} 11. a4 {[%emt 0:05:20]} a6 {[%emt 0:34:15]} 12. axb5 {[%emt 0:09:33]} cxb5 {[%emt 0:00:09]} 13. Bxf6 {[%emt 0:00:41]} Qxf6 {[%emt 0:01:36]} 14. Qh5+ {[%emt 0:00:21]} g6 {[%emt 0:08:53]} 15. Qd5 {[%emt 0:01:41]} Ra7 {[%emt 0:00:24]} 16. Nxb5 {[%emt 0:08:11]} Bxh3 {[%emt 0:08:35]} 17. gxh3 {[%emt 0:07:45]} Rd7 {[%emt 0:03:33]} 18. Qxc4 {[%emt 0:15:06]} axb5 {[%emt 0:02:31]} 19. Qxb5 {[%emt 0:00:21]} Bd6 {[%emt 0:00:57]} 20. Ra8 {[%emt 0:01:43]} Ke7 {[%emt 0:06:23]} 21. Be2 {[%emt 0:00:38]} Rf8 {[%emt 0:03:50]} 22. Kd1 {[%emt 0:00:58]} Qf5 {[%emt 0:01:11]} 23. d5 {[%emt 0:01:03]} Qxh3 {[%emt 0:00:50]} 24. Kc2 {[%emt 0:00:49]} Qxe3 {[%emt 0:00:24]} 25. Kb1 {[%emt 0:00:04]} h5 {[%emt 0:03:08]} 26. Rc1 {[%emt 0:00:26]} Rf2 {[%emt 0:01:17]} 27. Rc2 {[%emt 0:00:08]} Qf4 {[%emt 0:00:26]} 28. Ra4 {[%emt 0:00:25]} Qe5 {[%emt 0:00:26]} 29. Rc8 {[%emt 0:00:26]} Rf8 {[%emt 0:00:29]} 30. Rcc4 {[%emt 0:00:33]} Rf4 {[%emt 0:00:01]} 31. Ka2 {[%emt 0:00:42]} g5 {[%emt 0:00:34]} 32. Bxh5 {[%emt 0:00:26]} e3 {[%emt 0:00:25]} 33. Rxf4 {[%emt 0:01:30]} gxf4 {[%emt 0:00:01]} 34. Bg4 {[%emt 0:00:16]} Rd8 {[%emt 0:01:03]} 35. Ra7+ {[%emt 0:00:48]} Kf6 {[%emt 0:00:28]} 36. h4 {[%emt 0:00:37]} Be7 {[%emt 0:00:46]} 37. Bf3 {[%emt 0:00:26]} e2 {[%emt 0:00:40]} 38. Qb6+ {[%emt 0:00:26]} Kg7 {[%emt 0:00:48]} 39. Qxd8 {[%emt 0:00:00]} 0-1